lending/lending_fUSD_20251124
["ID","MTS","AMOUNT","RATE_DAILY","PERIOD"]
[394792902,1763953833569,-2660.0,0.00037618,2]
[394792903,1763953833578,-168.0,0.00037654,2]
[394792904,1763953833587,-2126.24,0.00037662,2]
[394792905,1763953833597,-500.0,0.00037672,2]
[394792906,1763953833608,-437.5236953,0.00037673,5]
[394792907,1763953833617,-168.0,0.00037798,2]
[394792908,1763953833626,-1030.21,0.00037799,14]
[394792909,1763953833635,-1211.61,0.00037808,2]
[394792910,1763953833644,-1211.61,0.00037808,2]
[394792911,1763953833653,-551.17,0.00037808,2]
[394792912,1763953833662,-339.42,0.00037808,2]
[394792913,1763953833671,-551.17,0.00037808,2]
[394792914,1763953833680,-550.53,0.00037808,2]
[394792915,1763953833689,-169.75,0.00037808,2]
[394792916,1763953833697,-834.8,0.00037808,2]
[394792917,1763953833707,-834.8,0.00037808,2]
[394792918,1763953833717,-177.6,0.00037808,2]
[394792919,1763953833726,-177.6,0.00037808,2]
[394792920,1763953833735,-5474.92219017,0.00037812,2]
[394792921,1763953833744,-168.0,0.00037815,120]
[394792922,1763953833754,-168.0,0.00037835,7]
[394792923,1763953833764,-168.0,0.00037841,120]
[394792924,1763953833774,-340.4492931,0.00037922,2]
[394792925,1763953833783,-1000.0,0.00037955,2]
[394792926,1763953833793,-504.0,0.00037958,2]
[394792927,1763953833803,-1636.0,0.00038,7]
[394792928,1763953833813,-1122.0,0.00038012,2]
[394792929,1763953833822,-377.42122823,0.00038054,8]
[394792930,1763953833836,-122.57877177,0.00038054,8]
[394792931,1763953833845,-500.0,0.00038055,8]
[394792932,1763953833854,-513.19689432,0.00038055,8]
[394792933,1763953833864,-1030.21,0.00038073,14]
[394792934,1763953833873,-1659.0,0.000381,2]
[394792935,1763953833883,-461.0,0.00038161,2]
[394792936,1763953833893,-5474.92219017,0.00038198,2]
[394792937,1763953833904,-5313.0,0.0003824,5]
[394792938,1763953833913,-173.39,0.00038274,2]
[394792939,1763953833922,-500.0,0.00038328,120]
[394792940,1763953833932,-1030.21,0.00038347,14]
[394792941,1763953833942,-507.11288139,0.00038355,8]
[394792942,1763953833952,-500.0,0.00038356,8]
[394792943,1763953833963,-502.31913605,0.00038356,8]
[394792944,1763953833974,-500.0,0.00038356,8]
[394792945,1763953833985,-500.0,0.00038356,8]
[394792946,1763953833994,-624.9708388,0.00038356,2]
[394792947,1763953834003,-500.0,0.00038356,8]
[394792948,1763953834014,-500.0,0.00038356,8]
[394792949,1763953834023,-500.0,0.00038356,8]
[394792950,1763953834032,-500.0,0.00038356,8]
[394792951,1763953834043,-280.67378645,0.00038356,8]
[394792952,1763953834053,-513.16819226,0.00038356,8]
[394792953,1763953834063,-500.0,0.00038356,8]
[394792954,1763953834073,-181.07661978,0.00038356,8]
[394792955,1763953834082,-550.01482503,0.00038356,8]
[394792956,1763953834091,-500.0,0.00038356,8]
[394792957,1763953834102,-500.0,0.00038356,8]
[394792958,1763953834111,-282.18123783,0.00038356,8]
[394792959,1763953834123,-309.39642034,0.00038356,8]
[394792960,1763953834138,-500.0,0.00038356,8]
[394792961,1763953834147,-386.60822509,0.00038356,8]
[394792962,1763953834157,-364.75587455,0.00038356,8]
[394792963,1763953834166,-506.19708397,0.00038356,120]
[394792964,1763953834176,-500.0,0.00038356,8]
[394792965,1763953834184,-501.99415913,0.00038356,8]
[394792966,1763953834193,-203.85295938,0.00038356,8]
[394792967,1763953834203,-505.48743476,0.00038356,8]
[394792968,1763953834212,-447.76326179,0.00038356,8]
[394792969,1763953834222,-204.84468055,0.00038356,8]
[394792970,1763953834232,-500.0,0.00038356,8]
[394792971,1763953834242,-500.0,0.00038356,8]
[394792972,1763953834252,-241.60849711,0.00038356,8]
[394792973,1763953834262,-240.11245942,0.00038356,8]
[394792974,1763953834274,-259.88754058,0.00038356,8]
[394792975,1763953834283,-500.0,0.00038356,8]
[394792976,1763953834292,-504.41230854,0.00038356,8]
[394792977,1763953834302,-500.0,0.00038356,8]
[394792978,1763953834311,-505.97763007,0.00038356,8]
[394792979,1763953834320,-500.0,0.00038356,8]
[394792980,1763953834330,-500.0,0.00038356,8]
[394792981,1763953834338,-500.0,0.00038356,8]
[394792982,1763953834347,-500.0,0.00038356,8]
[394792983,1763953834356,-500.0,0.00038356,8]
[394792984,1763953834366,-231.62525193,0.00038356,8]
[394792985,1763953834375,-500.0,0.00038356,8]
[394792986,1763953834385,-500.0,0.00038356,8]
[394792987,1763953834394,-538.39,0.00038356,8]
[394792988,1763953834404,-500.0,0.00038356,8]
[394792989,1763953834413,-500.0,0.00038356,8]
[394792990,1763953834423,-500.0,0.00038356,8]
[394792991,1763953834433,-300.0,0.00038356,2]
[394792992,1763953834442,-500.0,0.00038356,8]
[394792993,1763953834451,-509.51051498,0.00038356,8]
[394792994,1763953834460,-577.34831124,0.00038356,8]
[394792995,1763953834469,-512.54260792,0.00038356,8]
[394792996,1763953834478,-500.0,0.00038356,8]
[394792997,1763953834487,-545.44,0.00038356,8]
[394792998,1763953834497,-500.0,0.00038356,8]
[394792999,1763953834507,-530.72301935,0.00038356,8]
[394793000,1763953834518,-500.0,0.00038356,8]
[394793001,1763953834532,-500.0,0.00038356,8]
[394793002,1763953834542,-500.0,0.00038356,8]
[394793003,1763953834551,-500.0,0.00038356,8]
[394793004,1763953834561,-500.0,0.00038356,8]
[394793005,1763953834570,-505.79529391,0.00038356,8]
[394793006,1763953834579,-193.80052388,0.00038356,8]
[394793007,1763953834589,-500.0,0.00038356,8]
[394793008,1763953834601,-500.0,0.00038356,8]
[394793009,1763953834610,-617.9195348,0.00038356,8]
[394793010,1763953834619,-500.0,0.00038356,8]
[394793011,1763953834628,-500.0,0.00038356,8]
[394793012,1763953834637,-500.0,0.00038356,8]
[394793013,1763953834649,-500.0,0.00038356,8]
[394793014,1763953834660,-500.0,0.00038356,8]
[394793015,1763953834669,-500.0,0.00038356,8]
[394793016,1763953834677,-536.16144259,0.00038356,8]
[394793017,1763953834686,-500.0,0.00038356,8]
[394793018,1763953834695,-424.69968772,0.00038356,8]
[394793019,1763953834704,-530.01366376,0.00038356,8]
[394793020,1763953834713,-643.01232674,0.00038356,8]
[394793021,1763953834722,-510.80057499,0.00038356,8]
[394793022,1763953834731,-500.0,0.00038356,8]
[394793023,1763953834740,-551.1591355,0.00038356,8]
[394793024,1763953834749,-542.95833541,0.00038356,8]
[394793025,1763953834758,-500.0,0.00038356,8]
[394793026,1763953834767,-500.0,0.00038356,8]
[394793027,1763953834775,-500.0,0.00038356,8]
[394793028,1763953834784,-500.0,0.00038356,8]
[394793029,1763953834793,-500.0,0.00038356,8]
[394793030,1763953834802,-591.07613381,0.00038356,8]
[394793031,1763953834812,-529.85572175,0.00038356,8]
[394793032,1763953834821,-500.0,0.00038356,8]
[394793033,1763953834831,-244.51626757,0.00038356,8]
[394793034,1763953834840,-543.79944399,0.00038356,8]
[394793035,1763953834849,-475.33168135,0.00038356,8]
[394793036,1763953834858,-1000.0,0.00038356,120]
[394793037,1763953834867,-550.21681991,0.00038356,8]
[394793038,1763953834876,-500.0,0.00038356,8]
[394793039,1763953834886,-500.0,0.00038356,8]
[394793040,1763953834895,-253.13841791,0.00038356,8]
[394793041,1763953834904,-590.13237317,0.00038356,8]
[394793042,1763953834914,-500.0,0.00038356,8]
[394793043,1763953834924,-500.0,0.00038356,8]
[394793044,1763953834934,-506.35243885,0.00038356,8]
[394793045,1763953834944,-500.0,0.00038356,8]
[394793046,1763953834954,-506.31625184,0.00038356,8]
[394793047,1763953834964,-284.31691849,0.00038356,8]
[394793048,1763953834975,-506.36696655,0.00038356,8]
[394793049,1763953834984,-500.0,0.00038356,8]
[394793050,1763953834996,-500.0,0.00038356,8]
[394793051,1763953835006,-581.15134573,0.00038356,8]
[394793052,1763953835016,-500.0,0.00038356,8]
[394793053,1763953835025,-505.70650122,0.00038356,8]
[394793054,1763953835035,-511.03643107,0.00038356,8]
[394793055,1763953835044,-404.46760292,0.00038356,8]
[394793056,1763953835054,-500.0,0.00038356,8]
[394793057,1763953835063,-205.89326415,0.00038356,8]
[394793058,1763953835073,-500.0,0.00038356,8]
[394793059,1763953835084,-500.0,0.00038356,8]
[394793060,1763953835094,-512.09517694,0.00038356,8]
[394793061,1763953835103,-500.0,0.00038356,8]
[394793062,1763953835113,-500.0,0.00038356,8]
[394793063,1763953835122,-500.0,0.00038356,8]
[394793064,1763953835131,-503.66479021,0.00038356,8]
[394793065,1763953835139,-500.0,0.00038356,8]
[394793066,1763953835148,-505.8215855,0.00038356,8]
[394793067,1763953835158,-500.0,0.00038356,8]
[394793068,1763953835167,-506.15204063,0.00038356,8]
[394793069,1763953835177,-528.43807309,0.00038356,8]
[394793070,1763953835185,-500.0,0.00038356,8]
[394793071,1763953835194,-500.0,0.00038356,8]
[394793072,1763953835204,-617.46820752,0.00038356,8]
[394793073,1763953835212,-500.0,0.00038356,8]
[394793074,1763953835222,-520.58253044,0.00038356,8]
[394793075,1763953835231,-500.0,0.00038356,8]
[394793076,1763953835240,-500.0,0.00038356,8]
[394793077,1763953835249,-500.0,0.00038356,8]
[394793078,1763953835258,-506.44642292,0.00038356,8]
[394793079,1763953835268,-500.0,0.00038356,8]
[394793080,1763953835277,-503.11658506,0.00038356,8]
[394793081,1763953835287,-500.0,0.00038356,8]
[394793082,1763953835296,-161.64342082,0.00038356,8]
[394793083,1763953835305,-504.59641058,0.00038356,8]
[394793084,1763953835315,-344.6576655,0.00038356,8]
[394793085,1763953835464,-155.3423345,0.00038356,8]
[394793086,1763953835473,-262.92403105,0.00038356,8]
[394793087,1763953835485,-243.60915446,0.00038356,8]
[394793088,1763953835494,-506.94901486,0.00038356,8]
[394793089,1763953835503,-504.03642207,0.00038356,8]
[394793090,1763953835512,-134.32495803,0.00038356,8]
[394793091,1763953835527,-365.67504197,0.00038356,8]
[394793092,1763953835536,-508.03157808,0.00038356,8]
[394793093,1763953835545,-500.0,0.00038356,8]
[394793094,1763953835554,-500.0,0.00038356,8]
[394793095,1763953835565,-223.82359485,0.00038356,8]
[394793096,1763953835603,-280.70532897,0.00038356,8]
[394793097,1763953835612,-500.0,0.00038356,8]
[394793098,1763953835622,-90.29467103,0.00038356,8]
[394793099,1763953835652,-409.70532897,0.00038356,8]
[394793100,1763953835661,-500.0,0.00038356,8]
[394793101,1763953835670,-500.0,0.00038356,8]
[394793102,1763953835679,-500.0,0.00038356,8]
[394793103,1763953835688,-500.0,0.00038356,8]
[394793104,1763953835698,-501.91711362,0.00038356,8]
[394793105,1763953835708,-517.32239928,0.00038356,8]
[394793106,1763953835717,-500.0,0.00038356,8]
[394793107,1763953835727,-500.0,0.00038356,8]
[394793108,1763953835738,-418.67306161,0.00038356,8]
[394793109,1763953835748,-530.58189506,0.00038356,8]
[394793110,1763953835757,-519.13638322,0.00038356,8]
[394793111,1763953835766,-500.0,0.00038356,8]
[394793112,1763953835775,-500.0,0.00038356,8]
[394793113,1763953835783,-500.0,0.00038356,8]
[394793114,1763953835793,-373.26114123,0.00038356,8]
[394793115,1763953835803,-503.13168756,0.00038356,8]
[394793116,1763953835812,-500.0,0.00038356,8]
[394793117,1763953835822,-500.0,0.00038356,8]
[394793118,1763953835831,-503.47696841,0.00038356,8]
[394793119,1763953835840,-500.0,0.00038356,8]
[394793120,1763953835849,-502.5682983,0.00038356,8]
[394793121,1763953835858,-500.0,0.00038356,8]
[394793122,1763953835867,-509.22725887,0.00038356,8]
[394793123,1763953835875,-501.40394797,0.00038356,8]
[394793124,1763953835884,-500.0,0.00038356,8]
[394793125,1763953835893,-500.0,0.00038356,8]
[394793126,1763953835903,-500.0,0.00038356,8]
[394793127,1763953835912,-108.91632974,0.00038356,8]
[394793128,1763953835924,-391.08367026,0.00038356,8]
[394793129,1763953835934,-500.77370423,0.00038356,8]
[394793130,1763953835943,-500.0,0.00038356,8]
[394793131,1763953835952,-500.0,0.00038356,8]
[394793132,1763953835962,-500.0,0.00038356,8]
[394793133,1763953835971,-500.0,0.00038356,90]
[394793134,1763953835981,-81.94262551,0.00038356,8]
[394793135,1763953835992,-418.05737449,0.00038356,8]
[394793136,1763953836001,-414.28156038,0.00038356,8]
[394793137,1763953836012,-85.71843962,0.00038356,8]
[394793138,1763953836021,-532.50219232,0.00038356,8]
[394793139,1763953836032,-508.9303955,0.00038356,8]
[394793140,1763953836043,-478.74344925,0.00038356,8]
[394793141,1763953837759,-309.25661823,0.00020513,2]
[394793142,1763953837769,-21.25655075,0.00038356,8]
[394793143,1763953837778,-500.0,0.00038356,8]
[394793144,1763953837787,-505.82804391,0.00038356,8]
[394793145,1763953837799,-506.55927295,0.00038356,8]
[394793146,1763953837808,-550.19247878,0.00038356,8]
[394793147,1763953837817,-232.68703538,0.00038356,8]
[394793148,1763953839949,-561.0,0.00037618,2]
[394793149,1763953839959,-278.4882481,0.00038356,8]
[394793150,1763953839968,-502.09310886,0.00038356,8]
[394793151,1763953839978,-194.48766475,0.00038356,8]
[394793152,1763953839989,-305.51233525,0.00038356,8]
[394793153,1763953839999,-432.12746951,0.00038356,8]
[394793154,1763953840008,-488.46365991,0.00038356,7]
[394793160,1763953844106,-12.51146159,0.00038356,7]
[394793161,1763953844116,-500.0,0.00038356,8]
[394793162,1763953844126,-500.0,0.00038356,8]
[394793163,1763953844136,-533.1154583,0.00038356,8]
[394793164,1763953844146,-500.0,0.00038356,8]
[394793165,1763953844156,-500.0,0.00038356,8]
[394793166,1763953844166,-500.0,0.00038356,8]
[394793167,1763953844175,-504.10864684,0.00038356,8]
[394793168,1763953844185,-568.70347016,0.00038356,8]
[394793169,1763953844194,-174.11900528,0.00038356,8]
[394793170,1763953844204,-508.89150788,0.00038356,8]
[394793171,1763953844213,-513.94646076,0.00038356,8]
[394793172,1763953844223,-500.0,0.00038356,8]
[394793173,1763953844232,-151.52445037,0.00038356,8]
[394793177,1763953845945,-348.47554963,0.00038356,8]
[394793178,1763953845955,-281.38433987,0.00038356,8]
[394793179,1763953845999,-226.06039413,0.00038356,8]
[394793180,1763953846009,-144.07971637,0.00038356,8]
[394793181,1763953846020,-405.04822284,0.00038356,8]
[394793182,1763953846030,-500.0,0.00038356,8]
[394793183,1763953846040,-500.0,0.00038356,8]
[394793184,1763953846051,-500.0,0.00038356,8]
[394793185,1763953846061,-500.0,0.00038356,8]
[394793186,1763953846071,-500.0,0.00038356,8]
[394793187,1763953846080,-500.0,0.00038356,8]
[394793188,1763953846089,-500.0,0.00038356,8]
[394793189,1763953846103,-214.63482776,0.00038356,8]
[394793190,1763953846112,-585.27098278,0.00038356,8]
[394793191,1763953846122,-500.0,0.00038356,8]
[394793192,1763953846132,-500.0,0.00038356,8]
[394793193,1763953846141,-457.7721496,0.00038356,8]
[394793194,1763953846150,-500.0,0.00038356,8]
[394793195,1763953846160,-500.0,0.00038356,8]
[394793196,1763953846170,-514.59785343,0.00038356,8]
[394793197,1763953846180,-286.27317446,0.00038356,8]
[394793198,1763953846190,-503.48712754,0.00038356,8]
[394793199,1763953846199,-501.24125326,0.00038356,2]
[394793200,1763953846208,-500.0,0.00038356,8]
[394793201,1763953846217,-500.0,0.00038356,8]
[394793202,1763953846226,-500.0,0.00038356,8]
[394793203,1763953846235,-500.0,0.00038356,8]
[394793204,1763953846245,-582.38303792,0.00038356,8]
[394793205,1763953846254,-282.76397321,0.00038356,8]
[394793206,1763953846263,-648.05288462,0.00038356,8]
[394793207,1763953846273,-192.57492786,0.00038356,8]
[394793208,1763953846282,-504.67904406,0.00038356,8]
[394793209,1763953846291,-500.0,0.00038356,8]
[394793210,1763953846304,-500.0,0.00038356,2]
[394793211,1763953846313,-639.57305517,0.00038356,8]
[394793212,1763953846323,-500.0,0.00038356,8]
[394793213,1763953846332,-344.37669292,0.00038356,8]
[394793214,1763953846341,-630.90823755,0.00038356,8]
[394793215,1763953846350,-500.0,0.00038356,8]
[394793216,1763953846360,-500.0,0.00038356,8]
[394793217,1763953846370,-539.27366182,0.00038356,8]
[394793218,1763953846379,-504.68405134,0.00038356,8]
[394793219,1763953846388,-517.22295893,0.00038356,8]
[394793220,1763953846397,-500.0,0.00038356,8]
[394793221,1763953846408,-500.0,0.00038356,8]
[394793222,1763953846418,-501.65995211,0.00038356,8]
[394793223,1763953846426,-500.0,0.00038356,8]
[394793224,1763953846435,-500.0,0.00038356,8]
[394793225,1763953846445,-500.0,0.00038356,8]
[394793226,1763953846454,-1718.7,0.00038356,8]
[394793227,1763953846463,-530.87585927,0.00038356,8]
[394793228,1763953846472,-511.12766086,0.00038356,8]
[394793229,1763953846481,-500.0,0.00038356,8]
[394793230,1763953846494,-500.0,0.00038356,8]
[394793231,1763953846503,-508.17058183,0.00038356,8]
[394793232,1763953846514,-514.80446368,0.00038356,8]
[394793233,1763953846528,-500.0,0.00038356,8]
[394793234,1763953846537,-600.21611346,0.00038356,8]
[394793235,1763953846546,-500.0,0.00038356,8]
[394793236,1763953846555,-594.17259146,0.00038356,8]
[394793237,1763953846566,-500.0,0.00038356,8]
[394793238,1763953846575,-500.0,0.00038356,8]
[394793239,1763953846584,-500.0,0.00038356,8]
[394793240,1763953846594,-644.72423448,0.00038356,8]
[394793241,1763953846604,-500.0,0.00038356,8]
[394793242,1763953846613,-500.0,0.00038356,8]
[394793243,1763953846622,-189.59211853,0.00038356,8]
[394793244,1763953846631,-500.0,0.00038356,8]
[394793245,1763953846640,-275.2111484,0.00038356,8]
[394793246,1763953846649,-291.82959515,0.00038356,8]
[394793247,1763953846659,-293.66055809,0.00038356,8]
[394793248,1763953846671,-500.0,0.00038356,8]
[394793249,1763953846680,-204.04269117,0.00038356,8]
[394793250,1763953846692,-500.0,0.00038356,8]
[394793251,1763953846701,-500.0,0.00038356,8]
[394793252,1763953846711,-500.0,0.00038356,8]
[394793253,1763953846721,-573.33434789,0.00038356,8]
[394793254,1763953846729,-360.4508928,0.00038356,8]
[394793255,1763953846738,-500.0,0.00038356,8]
[394793256,1763953846747,-500.0,0.00038356,8]
[394793257,1763953846756,-177.05170935,0.00038356,8]
[394793258,1763953846765,-969.66,0.00038356,8]
[394793259,1763953846775,-500.0,0.00038356,8]
[394793260,1763953846784,-513.76839916,0.00038356,8]
[394793261,1763953846793,-515.61160593,0.00038356,8]
[394793262,1763953846802,-508.42017396,0.00038356,8]
[394793263,1763953847059,-509.80508233,0.00038356,8]
[394793264,1763953847072,-500.0,0.00038356,8]
[394793265,1763953847081,-500.0,0.00038356,8]
[394793266,1763953847092,-500.0,0.00038356,8]
[394793267,1763953847101,-591.62298782,0.00038356,8]
[394793268,1763953847111,-500.0,0.00038356,8]
[394793269,1763953847120,-500.0,0.00038356,8]
[394793270,1763953847130,-500.0,0.00038356,8]
[394793271,1763953847139,-511.35436361,0.00038356,8]
[394793272,1763953847149,-529.52,0.00038356,8]
[394793273,1763953847159,-500.0,0.00038356,8]
[394793274,1763953847169,-505.61140217,0.00038356,8]
[394793275,1763953847178,-524.98221331,0.00038356,8]
[394793276,1763953847187,-500.0,0.00038356,8]
[394793277,1763953847198,-500.0,0.00038356,8]
[394793278,1763953847208,-500.0,0.00038356,8]
[394793279,1763953847217,-172.38378978,0.00038356,8]
[394793280,1763953847227,-510.15208169,0.00038356,8]
[394793281,1763953847237,-501.54178233,0.00038356,10]
[394793282,1763953847246,-341.95468381,0.00038356,8]
[394793283,1763953847255,-509.83730127,0.00038356,8]
[394793284,1763953847264,-272.58632687,0.00038356,8]
[394793285,1763953847274,-500.0,0.00038356,8]
[394793286,1763953847283,-500.0,0.00038356,8]
[394793287,1763953847292,-500.0,0.00038356,8]
[394793288,1763953847301,-643.67963794,0.00038356,8]
[394793289,1763953847310,-500.0,0.00038356,8]
[394793290,1763953847319,-500.0,0.00038356,8]
[394793291,1763953847329,-500.0,0.00038356,8]
[394793292,1763953847339,-500.0,0.00038356,8]
[394793293,1763953847348,-500.0,0.00038356,8]
[394793294,1763953847358,-598.46997952,0.00038356,8]
[394793295,1763953847367,-500.0,0.00038356,8]
[394793296,1763953847377,-500.0,0.00038356,8]
[394793297,1763953847386,-500.0,0.00038356,8]
[394793298,1763953847395,-500.0,0.00038356,8]
[394793299,1763953847405,-361.38570182,0.00038356,8]
[394793300,1763953847415,-500.0,0.00038356,8]
[394793301,1763953847424,-509.83392337,0.00038356,8]
[394793302,1763953847433,-500.0,0.00038356,8]
[394793303,1763953847443,-500.0,0.00038356,8]
[394793304,1763953847452,-500.0,0.00038356,8]
[394793305,1763953847467,-500.0,0.00038356,8]
[394793306,1763953847476,-500.0,0.00038356,8]
[394793307,1763953847487,-500.0,0.00038356,8]
[394793308,1763953847497,-592.51032736,0.00038356,8]
[394793309,1763953847507,-500.0,0.00038356,2]
[394793310,1763953847517,-348.9647271,0.00038356,8]
[394793311,1763953847530,-500.0,0.00038356,8]
[394793312,1763953847540,-500.0,0.00038356,8]
[394793313,1763953847549,-500.0,0.00038356,8]
[394793314,1763953847562,-160.59676179,0.00038356,8]
[394793315,1763953847572,-500.0,0.00038356,8]
[394793316,1763953847581,-500.0,0.00038356,8]
[394793317,1763953847590,-300.91334612,0.00038356,2]
[394793318,1763953847602,-500.0,0.00038356,8]
[394793319,1763953847612,-507.16856901,0.00038356,8]
[394793320,1763953847621,-516.90516068,0.00038356,8]
[394793321,1763953847630,-500.0,0.00038356,8]
[394793322,1763953847640,-575.64078426,0.00038356,8]
[394793323,1763953847649,-166.93019516,0.00038356,2]
[394793324,1763953847659,-600.0,0.00038356,30]
[394793325,1763953847669,-168.0,0.00038367,7]
[394793326,1763953847679,-319.63491966,0.00038373,5]
[394793327,1763953847688,-500.8566928,0.00038373,5]
[394793328,1763953847697,-500.0,0.00038373,5]
[394793329,1763953847707,-500.0,0.00038373,5]
[394793330,1763953847716,-501.06224342,0.00038373,5]
[394793331,1763953847725,-503.08187265,0.00038373,5]
[394793332,1763953847734,-500.0,0.00038373,5]
[394793333,1763953847743,-500.0,0.00038373,5]
[394793334,1763953847753,-500.48572372,0.00038373,5]
[394793335,1763953847762,-501.83104385,0.00038373,5]
[394793336,1763953847771,-501.02178861,0.00038373,5]
[394793337,1763953847781,-162.94835996,0.00038373,5]
[394793338,1763953847790,-500.93609183,0.00038373,5]
[394793339,1763953847800,-500.0,0.00038373,5]
[394793340,1763953847809,-500.0,0.00038373,5]
[394793341,1763953847819,-1000.0,0.00038383,120]
[394793342,1763953847828,-1000.0,0.0003841,120]
[394793343,1763953847837,-340.4492931,0.00038419,2]
[394793344,1763953847846,-1000.0,0.00038438,120]
[394793345,1763953847856,-1000.0,0.00038465,120]
[394793346,1763953847865,-1000.0,0.00038493,120]
[394793347,1763953847875,-1000.0,0.0003852,120]
[394793348,1763953847884,-827.01887875,0.00038547,120]
[394793349,1763953847893,-151.8,0.00038548,2]
[394793350,1763953847902,-424.88,0.00038548,2]
[394793351,1763953847911,-169.75,0.00038548,2]
[394793352,1763953847921,-177.64,0.00038548,2]
[394793353,1763953847930,-169.75,0.00038548,2]
[394793354,1763953847943,-177.64,0.00038548,2]
[394793355,1763953847952,-177.64,0.00038548,2]
[394793356,1763953847962,-337.45,0.00038548,2]
[394793357,1763953847972,-818.22107,0.0003855,2]
[394793358,1763953847981,-5474.92219017,0.00038584,2]
[394793359,1763953847990,-500.0,0.00038602,120]
[394793360,1763953847999,-1030.21,0.00038621,30]
[394793361,1763953848008,-500.0,0.00038629,30]
[394793362,1763953848018,-250.0,0.00038629,30]
[394793363,1763953848027,-250.0,0.00038629,30]
[394793364,1763953848036,-500.0,0.00038629,30]
[394793365,1763953848045,-250.0,0.00038629,30]
[394793366,1763953848054,-500.0,0.00038629,30]
[394793367,1763953848063,-250.0,0.00038629,30]
[394793368,1763953848072,-662.10795307,0.00038629,30]
[394793369,1763953848082,-500.0,0.00038629,30]
[394793370,1763953848091,-500.0,0.00038629,30]
[394793371,1763953848101,-250.0,0.00038629,30]
[394793372,1763953848111,-250.0,0.00038629,30]
[394793373,1763953848121,-500.0,0.00038629,30]
[394793374,1763953848130,-254.88073282,0.00038629,30]
[394793413,1763955031883,-300.0,0.00016999,2]
[394793414,1763955031893,-23271.55690299,0.00017,2]
[394793415,1763955031902,-1766.69182015,0.000181,2]
[394793416,1763955031912,-5132.56304945,0.00019,2]
[394793417,1763955031922,-4546.35865305,0.000199,3]
[394793418,1763955031931,-1200.0,0.00019949,2]
[394793419,1763955031940,-550.0,0.00019949,2]
[394793420,1763955031949,-47238.64813154,0.0001995,15]
[394793421,1763955031964,-1257.48277534,0.0001995,15]
[394793422,1763955031974,-335.04976339,0.0002,2]
[394793446,1763955037753,-1187.99514147,0.0002,2]
[394793447,1763955037762,-864.83525164,0.0002,5]
[394793448,1763955037771,-1452.60236853,0.0002,2]
[394793449,1763955037859,-10678.14737334,0.0002,2]
[394793450,1763955037915,-4600.0,0.0002,2]
[394793451,1763955037968,-5270.01857484,0.0002,2]
[394793453,1763955038026,-3424.71584074,0.0002,2]
[394793455,1763955038035,-9318.81407723,0.0002,5]
[394793541,1763955039809,-5350.87,0.0002,5]
[394793542,1763955039820,-2776.79889938,0.0002,5]
[394793543,1763955039863,-63975.54570815,0.0002,5]
[394793544,1763955039873,-1793.73030421,0.00021623,2]
[394793545,1763955039882,-1200.0,0.00021723,2]
[394793546,1763955039891,-1793.73030419,0.00023765,2]
[394793547,1763955039901,-1793.73030419,0.00025907,2]
[394793548,1763955039910,-285.0,0.00027294,2]
[394793549,1763955039922,-377.41346353,0.00027349,2]
[394793550,1763955039931,-1793.73030419,0.00028049,2]
[394793551,1763955039941,-1793.73030419,0.00030191,2]
[394793552,1763955039950,-227.55856772,0.00031526,2]
[394793553,1763955039958,-200.0,0.0003153,30]
[394793554,1763955039967,-1793.73030419,0.00032332,2]
[394793555,1763955039976,-3825.07,0.00034128,2]
[394793556,1763955039985,-166.39,0.0003425,2]
[394793557,1763955039995,-999.0,0.00034422,3]